fUSD/lending_fUSD_20241219
["ID","MTS","AMOUNT","RATE_DAILY","PERIOD"]
[346004173,1734619851069,-500.0,0.00023287,4]
[346004174,1734619851078,-554.96,0.00023287,4]
[346004175,1734619851087,-500.0,0.00023287,4]
[346004176,1734619851096,-783.95,0.00023287,4]
[346004177,1734619851105,-500.0,0.00023287,4]
[346004178,1734619851114,-500.0,0.00023287,4]
[346004179,1734619851123,-500.0,0.00023287,4]
[346004180,1734619851133,-527.81,0.00023287,4]
[346004181,1734619851143,-500.0,0.00023287,4]
[346004182,1734619851152,-500.0,0.00023287,4]
[346004183,1734619851161,-500.0,0.00023287,4]
[346004184,1734619851171,-500.0,0.00023287,4]
[346004185,1734619851180,-500.0,0.00023287,4]
[346004186,1734619851188,-240.78,0.00023287,4]
[346004187,1734619851198,-500.0,0.00023287,4]
[346004188,1734619851207,-431.04930303,0.00023287,4]
[346004189,1734619851216,-500.0,0.00023287,4]
[346004190,1734619851225,-500.0,0.00023287,4]
[346004191,1734619851234,-500.0,0.00023287,4]
[346004192,1734619851243,-500.0,0.00023287,4]
[346004193,1734619851252,-500.0,0.00023287,4]
[346004194,1734619851262,-687.78,0.00023287,4]
[346004195,1734619851271,-500.0,0.00023287,4]
[346004196,1734619851285,-500.0,0.00023287,4]
[346004197,1734619851294,-374.56747544,0.00023287,4]
[346004198,1734619851303,-500.0,0.00023287,4]
[346004199,1734619851312,-500.0,0.00023287,4]
[346004200,1734619851322,-500.0,0.00023287,4]
[346004201,1734619851331,-500.0,0.00023287,4]
[346004202,1734619851340,-500.0,0.00023287,4]
[346004203,1734619851350,-743.16,0.00023287,4]
[346004204,1734619851359,-533.38,0.00023287,4]
[346004205,1734619851368,-500.0,0.00023287,4]
[346004206,1734619851377,-1319.11,0.00023287,4]
[346004207,1734619851386,-500.0,0.00023287,4]
[346004208,1734619851395,-500.0,0.00023287,4]
[346004209,1734619851404,-500.0,0.00023287,4]
[346004210,1734619851414,-500.0,0.00023287,4]
[346004211,1734619851423,-500.0,0.00023287,4]
[346004212,1734619851433,-500.0,0.00023287,4]
[346004213,1734619851444,-500.0,0.00023287,4]
[346004214,1734619851454,-1159.25,0.00023287,4]
[346004215,1734619851463,-500.0,0.00023287,4]
[346004216,1734619851475,-1355.2,0.00023287,4]
[346004217,1734619851485,-500.0,0.00023287,4]
[346004218,1734619851495,-500.0,0.00023287,4]
[346004219,1734619851504,-2439.02,0.00023287,4]
[346004220,1734619851513,-500.0,0.00023287,4]
[346004221,1734619851524,-1110.6,0.00023287,4]
[346004222,1734619851536,-500.0,0.00023287,4]
[346004223,1734619851546,-500.0,0.00023287,4]
[346004224,1734619851555,-500.0,0.00023287,4]
[346004225,1734619851564,-620.85,0.00023287,4]
[346004226,1734619851574,-781.0,0.00023287,4]
[346004227,1734619851583,-1000.0,0.00023287,5]
[346004228,1734619851593,-500.23671596,0.00023287,5]
[346004229,1734619851602,-941.86,0.00023287,4]
[346004230,1734619851612,-857.05,0.00023287,4]
[346004231,1734619851622,-500.0,0.00023287,4]
[346004232,1734619851631,-500.0,0.00023287,4]
[346004233,1734619851640,-749.03,0.00023287,4]
[346004234,1734619851650,-500.0,0.00023287,4]
[346004235,1734619851660,-567.88701013,0.00023287,4]
[346004236,1734619851669,-1379.54,0.00023287,4]
[346004237,1734619851679,-500.0,0.00023287,4]
[346004238,1734619851688,-582.13,0.00023287,4]
[346004239,1734619851697,-664.17,0.00023287,4]
[346004240,1734619851707,-500.0,0.00023287,4]
[346004241,1734619851716,-1288.35,0.00023287,4]
[346004242,1734619851725,-500.0,0.00023287,4]
[346004243,1734619851734,-712.26,0.00023287,4]
[346004244,1734619851744,-500.0,0.00023287,4]
[346004245,1734619851754,-500.0,0.00023287,4]
[346004246,1734619851763,-500.0,0.00023287,4]
[346004247,1734619851772,-500.0,0.00023287,4]
[346004248,1734619851785,-500.0,0.00023287,4]
[346004249,1734619851794,-1155.02,0.00023287,4]
[346004250,1734619851803,-526.64,0.00023287,4]
[346004251,1734619851813,-500.0,0.00023287,2]
[346004252,1734619851822,-692.32,0.00023287,4]
[346004253,1734619851831,-1941.22,0.00023287,4]
[346004254,1734619851841,-1443.45,0.00023287,4]
[346004255,1734619851851,-500.0,0.00023287,4]
[346004256,1734619851872,-500.0,0.00023287,4]
[346004257,1734619851882,-666.18,0.00023287,4]
[346004258,1734619851891,-4671.05,0.00023287,4]
[346004259,1734619851901,-500.0,0.00023287,4]
[346004260,1734619851910,-500.0,0.00023287,4]
[346004261,1734619851920,-500.0,0.00023287,4]
[346004262,1734619851929,-500.0,0.00023287,4]
[346004263,1734619851938,-335.30994685,0.00023287,4]
[346004264,1734619851948,-500.0,0.00023287,4]
[346004265,1734619851957,-507.17,0.00023287,4]
[346004266,1734619851967,-500.0,0.00023287,4]
[346004267,1734619851976,-500.0,0.00023287,4]
[346004268,1734619851986,-500.0,0.00023287,4]
[346004269,1734619851995,-500.0,0.00023287,4]
[346004270,1734619852005,-500.0,0.00023287,4]
[346004271,1734619852014,-638.36,0.00023287,4]
[346004272,1734619852023,-500.0,0.00023287,4]
[346004273,1734619852036,-500.0,0.00023287,4]
[346004274,1734619852045,-613.45,0.00023287,4]
[346004275,1734619852054,-500.0,0.00023287,4]
[346004276,1734619852064,-583.42,0.00023287,4]
[346004277,1734619852074,-500.0,0.00023287,4]
[346004278,1734619852083,-1342.63,0.00023287,4]
[346004279,1734619852093,-925.35,0.00023287,4]
[346004280,1734619852102,-500.0,0.00023287,4]
[346004281,1734619852111,-552.75,0.00023287,4]
[346004282,1734619852119,-500.0,0.00023287,4]
[346004283,1734619852128,-232.89302103,0.00023287,4]
[346004284,1734619852137,-592.13,0.00023287,4]
[346004285,1734619852146,-500.0,0.00023287,4]
[346004286,1734619852155,-500.0,0.00023287,4]
[346004287,1734619852164,-2339.55,0.00023287,4]
[346004288,1734619852173,-500.0,0.00023287,4]
[346004289,1734619852182,-500.0,0.00023287,4]
[346004290,1734619852191,-500.0,0.00023287,4]
[346004291,1734619852200,-1038.07,0.00023287,4]
[346004292,1734619852209,-560.99347569,0.00023287,4]
[346004293,1734619852218,-1573.39,0.00023287,4]
[346004294,1734619852227,-500.0,0.00023287,4]
[346004295,1734619852236,-500.0,0.00023287,4]
[346004296,1734619852245,-500.0,0.00023287,4]
[346004297,1734619852255,-500.0,0.00023287,4]
[346004298,1734619852264,-965.55,0.00023287,4]
[346004299,1734619852274,-1681.79,0.00023287,4]
[346004300,1734619852287,-500.0,0.00023287,4]
[346004301,1734619852298,-1067.32,0.00023287,4]
[346004302,1734619852307,-1437.18,0.00023287,4]
[346004303,1734619852325,-500.0,0.00023287,4]
[346004304,1734619852338,-2714.35,0.00023287,4]
[346004305,1734619852348,-500.0,0.00023287,4]
[346004306,1734619852358,-1379.44,0.00023287,4]
[346004307,1734619852368,-1000.0,0.00023287,2]
[346004308,1734619852378,-500.0,0.00023287,4]
[346004309,1734619852388,-500.0,0.00023287,4]
[346004310,1734619852398,-500.0,0.00023287,4]
[346004311,1734619852408,-753.13,0.00023287,4]
[346004312,1734619852418,-500.0,0.00023287,4]
[346004313,1734619852428,-500.0,0.00023287,4]
[346004314,1734619852438,-500.0,0.00023287,4]
[346004315,1734619852451,-500.0,0.00023287,4]
[346004316,1734619852461,-1073.6,0.00023287,4]
[346004317,1734619852471,-1094.17,0.00023287,4]
[346004318,1734619852482,-1087.63,0.00023287,4]
[346004319,1734619852493,-1456.56,0.00023287,4]
[346004320,1734619852503,-500.0,0.00023287,4]
[346004321,1734619852515,-594.1,0.00023287,4]
[346004322,1734619852525,-500.0,0.00023287,4]
[346004323,1734619852538,-500.0,0.00023287,4]
[346004324,1734619852548,-500.0,0.00023287,4]
[346004325,1734619852559,-500.0,0.00023287,4]
[346004326,1734619852569,-500.0,0.00023287,4]
[346004327,1734619852580,-581.11,0.00023287,4]
[346004328,1734619852590,-500.0,0.00023287,4]
[346004329,1734619852601,-500.0,0.00023287,4]
[346004330,1734619852611,-2776.06,0.00023287,4]
[346004331,1734619852621,-500.0,0.00023287,4]
[346004332,1734619852631,-545.99,0.00023287,4]
[346004333,1734619852641,-1708.04,0.00023287,4]
[346004334,1734619852651,-500.0,0.00023287,4]
[346004335,1734619852661,-500.0,0.00023287,4]
[346004336,1734619852671,-500.0,0.00023287,4]
[346004337,1734619852681,-1364.7,0.00023287,4]
[346004338,1734619852692,-500.0,0.00023287,4]
[346004339,1734619852702,-655.37,0.00023287,4]
[346004340,1734619852712,-500.0,0.00023287,4]
[346004341,1734619852721,-1161.39,0.00023287,4]
[346004342,1734619852731,-500.0,0.00023287,4]
[346004343,1734619852741,-516.6,0.00023287,4]
[346004344,1734619852751,-500.0,0.00023287,4]
[346004345,1734619852761,-500.0,0.00023287,4]
[346004346,1734619852771,-624.34,0.00023303,2]
[346004347,1734619852784,-209.0,0.0002331,2]
[346004348,1734619852794,-168.75,0.00023313,2]
[346004349,1734619852804,-500.0,0.00023356,2]
[346004350,1734619852814,-408.68759819,0.00023356,2]
[346004351,1734619852823,-976.54,0.0002337,2]
[346004352,1734619852834,-364.93,0.0002337,2]
[346004353,1734619852843,-186.84,0.0002337,2]
[346004354,1734619852853,-293.94,0.0002337,2]
[346004355,1734619852863,-150.0,0.0002337,2]
[346004356,1734619852873,-152.68,0.0002337,2]
[346004357,1734619852883,-976.54,0.0002337,2]
[346004358,1734619852892,-364.93,0.0002337,2]
[346004359,1734619852902,-358.21,0.0002337,2]
[346004360,1734619852911,-500.0,0.00023373,2]
[346004361,1734619852922,-287.7876762,0.00023393,2]
[346004362,1734619852932,-428.19118329,0.00023398,2]
[346004363,1734619852942,-19822.80890349,0.00023418,2]
[346004364,1734619852952,-29264.9428,0.00023461,2]
[346004365,1734619852962,-150.0,0.00023473,4]
[346004366,1734619852971,-186.2,0.0002349,2]
[346004367,1734619852981,-32908.32094669,0.0002356,7]
[346004368,1734619853217,-25644.0105716,0.0002356,7]
[346004369,1734619853229,-11105.16821001,0.0002356,7]
[346004370,1734619853241,-1905.92084559,0.0002356,7]
[346004371,1734619853254,-7461.91580602,0.0002356,7]
[346004372,1734619853267,-1170.05,0.0002356,7]
[346004373,1734619853281,-321.9771734,0.0002356,7]
[346004374,1734619853293,-1988.84048,0.0002356,7]
[346004375,1734619853306,-91882.51993835,0.0002356,7]
[346004376,1734619853317,-412.864373,0.00023561,4]
[346004377,1734619853327,-194.309338,0.00023561,4]
[346004378,1734619853337,-500.0,0.00023561,4]
[346004379,1734619853347,-500.0,0.00023561,4]
[346004380,1734619853356,-500.0,0.00023561,4]
[346004381,1734619853366,-500.0,0.00023561,4]
[346004382,1734619853376,-500.0,0.00023561,4]
[346004383,1734619853385,-500.0,0.00023561,4]
[346004384,1734619853396,-500.0,0.00023561,4]
[346004385,1734619853406,-500.0,0.00023561,4]
[346004386,1734619853416,-500.0,0.00023561,4]
[346004387,1734619853426,-500.0,0.00023561,4]
[346004388,1734619853441,-500.0,0.00023561,4]
[346004389,1734619853451,-368.85589888,0.00023561,4]
[346004390,1734619853461,-500.0,0.00023561,4]
[346004391,1734619853472,-500.0,0.00023561,4]
[346004392,1734619853483,-500.0,0.00023561,4]
[346004393,1734619853493,-500.0,0.00023561,4]
[346004394,1734619853503,-500.0,0.00023561,4]
[346004395,1734619853513,-500.0,0.00023561,4]
[346004396,1734619853523,-500.0,0.00023561,4]
[346004397,1734619853538,-500.0,0.00023561,4]
[346004398,1734619853548,-500.0,0.00023561,4]
[346004399,1734619853558,-557.12708475,0.00023561,4]
[346004400,1734619853569,-500.0,0.00023561,4]
[346004401,1734619853579,-568.48,0.00023561,4]
[346004402,1734619853590,-500.0,0.00023561,4]
[346004403,1734619853600,-500.0,0.00023561,4]
[346004404,1734619853610,-642.71,0.00023561,4]
[346004405,1734619853620,-533.56,0.00023561,4]
[346004406,1734619853631,-500.0,0.00023561,4]
[346004407,1734619853641,-722.07,0.00023561,4]
[346004408,1734619853651,-515.92,0.00023561,4]
[346004409,1734619853661,-500.0,0.00023561,4]
[346004410,1734619853670,-508.2,0.00023561,4]
[346004411,1734619853681,-500.0,0.00023561,4]
[346004412,1734619853691,-500.0,0.00023561,4]
[346004413,1734619853701,-500.0,0.00023561,4]
[346004414,1734619853712,-500.0,0.00023561,4]
[346004415,1734619853722,-744.53,0.00023561,4]
[346004416,1734619853732,-500.0,0.00023561,4]
[346004417,1734619853741,-500.0,0.00023561,4]
[346004418,1734619853752,-500.0,0.00023561,4]
[346004419,1734619853762,-500.0,0.00023561,4]
[346004420,1734619853772,-500.0,0.00023561,4]
[346004421,1734619853786,-500.0,0.00023561,4]
[346004422,1734619853797,-500.0,0.00023561,4]
[346004423,1734619853807,-194.73849995,0.00023561,4]
[346004424,1734619853816,-868.35,0.00023561,4]
[346004425,1734619853827,-500.0,0.00023561,4]
[346004426,1734619853838,-500.0,0.00023561,4]
[346004427,1734619854021,-306.44258769,0.00023561,4]
[346004428,1734619854035,-500.0,0.00023561,4]
[346004429,1734619854044,-554.96,0.00023561,4]
[346004430,1734619854054,-500.0,0.00023561,4]
[346004431,1734619854064,-783.95,0.00023561,4]
[346004432,1734619854073,-500.0,0.00023561,4]
[346004433,1734619854082,-500.0,0.00023561,4]
[346004434,1734619854091,-500.0,0.00023561,4]
[346004435,1734619854101,-527.81,0.00023561,4]
[346004436,1734619854110,-500.0,0.00023561,4]
[346004437,1734619854120,-500.0,0.00023561,4]
[346004438,1734619854129,-500.0,0.00023561,4]
[346004439,1734619854137,-500.0,0.00023561,4]
[346004440,1734619854147,-500.0,0.00023561,4]
[346004441,1734619854156,-500.0,0.00023561,4]
[346004442,1734619854165,-500.0,0.00023561,4]
[346004443,1734619854174,-392.81073311,0.00023561,4]
[346004444,1734619854183,-500.0,0.00023561,4]
[346004445,1734619854192,-500.0,0.00023561,4]
[346004446,1734619854201,-500.0,0.00023561,4]
[346004447,1734619854210,-687.78,0.00023561,4]
[346004448,1734619854219,-500.0,0.00023561,4]
[346004449,1734619854228,-500.0,0.00023561,4]
[346004450,1734619854237,-500.0,0.00023561,4]
[346004451,1734619854246,-500.0,0.00023561,4]
[346004452,1734619854255,-644.6905074,0.00023561,4]
[346004453,1734619854265,-500.0,0.00023561,4]
[346004454,1734619854275,-500.0,0.00023561,4]
[346004455,1734619854292,-743.16,0.00023561,4]
[346004456,1734619854302,-533.38,0.00023561,4]
[346004457,1734619854313,-500.0,0.00023561,4]
[346004458,1734619854323,-1319.11,0.00023561,4]
[346004459,1734619854334,-500.0,0.00023561,4]
[346004460,1734619854343,-500.0,0.00023561,4]
[346004461,1734619854352,-251.48379097,0.00023561,4]
[346004463,1734619855066,-500.0,0.00021917,4]
[346004464,1734619855076,-500.0,0.00021917,4]
[346004465,1734619855086,-500.0,0.00022191,4]
[346004466,1734619855096,-500.0,0.00022465,4]
[346004467,1734619855107,-556.79,0.00022739,4]
[346004468,1734619855117,-500.0,0.00022739,4]
[346004469,1734619855126,-556.79,0.00023013,4]
[346004470,1734619855136,-500.0,0.00023013,4]
[346004471,1734619855146,-556.79,0.00023287,4]
[346004472,1734619855155,-485.98273061,0.00023287,4]
[346004473,1734619855167,-14.01726939,0.00023287,4]
[346004474,1734619855176,-381.8680061,0.00023314,2]
[346004475,1734619855186,-248.51620903,0.00023561,4]
[346004476,1734619855195,-500.0,0.00023561,4]
[346004477,1734619855205,-500.0,0.00023561,4]
[346004478,1734619855215,-500.0,0.00023561,4]
[346004479,1734619855225,-1159.25,0.00023561,4]
[346004480,1734619855235,-500.0,0.00023561,4]
[346004481,1734619855244,-500.0,0.00023561,4]
[346004482,1734619855254,-500.0,0.00023561,4]
[346004483,1734619855264,-2439.02,0.00023561,4]
[346004484,1734619855274,-500.0,0.00023561,4]
[346004485,1734619855287,-1110.6,0.00023561,4]
[346004486,1734619855297,-500.0,0.00023561,4]
[346004487,1734619855306,-500.0,0.00023561,4]
[346004488,1734619855316,-500.0,0.00023561,4]
[346004489,1734619855325,-620.85,0.00023561,4]
[346004490,1734619855335,-781.0,0.00023561,4]
[346004491,1734619855345,-941.86,0.00023561,4]
[346004492,1734619855355,-857.05,0.00023561,4]
[346004493,1734619855364,-500.0,0.00023561,4]
[346004494,1734619855374,-500.0,0.00023561,4]
[346004495,1734619855385,-749.03,0.00023561,4]
[346004496,1734619855395,-500.0,0.00023561,4]
[346004497,1734619855404,-1379.54,0.00023561,4]
[346004498,1734619855414,-582.13,0.00023561,4]
[346004499,1734619855424,-500.0,0.00023561,4]
[346004500,1734619855434,-664.17,0.00023561,4]
[346004501,1734619855446,-500.0,0.00023561,4]
[346004502,1734619855456,-1288.35,0.00023561,4]
[346004503,1734619855466,-500.0,0.00023561,4]
[346004504,1734619855476,-712.26,0.00023561,4]
[346004505,1734619855487,-500.0,0.00023561,4]
[346004506,1734619855497,-500.0,0.00023561,4]
[346004507,1734619855507,-500.0,0.00023561,4]
[346004508,1734619855521,-500.0,0.00023561,4]
[346004509,1734619855535,-500.0,0.00023561,4]
[346004510,1734619855544,-148.35980116,0.00023561,4]
[346004511,1734619855556,-1006.66019884,0.00023561,4]
[346004512,1734619855566,-526.64,0.00023561,4]
[346004513,1734619855576,-98.95708828,0.00023561,2]
[346004514,1734619855665,-500.72386877,0.00023561,2]
[346004515,1734619855675,-512.47613123,0.00023561,4]
[346004516,1734619855769,-500.0,0.00021917,4]
[346004517,1734619855779,-25.755001,0.00021917,4]
[346004518,1734619855808,-474.244999,0.00021917,4]
[346004519,1734619855819,-500.0,0.00021917,4]
[346004520,1734619855828,-500.0,0.00021917,4]
[346004521,1734619855838,-500.0,0.00022191,4]
[346004522,1734619855849,-500.7,0.00022191,4]
[346004523,1734619855859,-179.84386877,0.00023561,4]
[346004524,1734619855873,-1941.22,0.00023561,4]
[346004525,1734619855886,-1443.45,0.00023561,4]
[346004526,1734619855901,-848.5396022,0.00023561,2]
[346004527,1734619855922,-1107.43315,0.00023561,2]
[346004528,1734619855936,-272.9833578,0.00023561,2]
[346004529,1734619855949,-500.0,0.00023561,4]
[346004530,1734619855961,-158.47161136,0.00023561,4]
[346004531,1734619856163,-369.6,0.00021917,4]
[346004532,1734619856179,-130.4,0.00021917,4]
[346004533,1734619856192,-500.0,0.00021917,4]
[346004534,1734619856205,-579.76932177,0.00021917,4]
[346004535,1734619856217,-500.0,0.00021917,4]
[346004536,1734619856229,-500.0,0.00021917,4]
[346004537,1734619856240,-500.0,0.00022191,4]
[346004538,1734619856253,-491.34164116,0.00022191,4]
[346004539,1734619856265,-341.52838864,0.00023561,4]
[346004540,1734619856278,-666.18,0.00023561,4]
[346004541,1734619856293,-375.05633833,0.00023561,4]
[346004542,1734619856306,-970.69923,0.00023561,4]
[346004543,1734619856321,-2449.0963499,0.00023561,4]
[346004544,1734619856333,-876.19808177,0.00023561,4]
[346004545,1734619856344,-532.7,0.00023561,4]
[346004546,1734619856356,-500.0,0.00023561,4]
[346004547,1734619856370,-500.0,0.00023561,4]
[346004548,1734619856383,-500.0,0.00023561,4]
[346004549,1734619856393,-500.0,0.00023561,4]
[346004550,1734619856403,-507.17,0.00023561,4]
[346004551,1734619856414,-500.0,0.00023561,4]
[346004552,1734619856425,-500.0,0.00023561,4]
[346004553,1734619856438,-500.0,0.00023561,4]
[346004554,1734619856456,-629.64,0.00023561,4]
[346004555,1734619856468,-500.0,0.00023561,4]
[346004556,1734619856479,-638.36,0.00023561,4]
[346004557,1734619856490,-500.0,0.00023561,4]
[346004558,1734619856501,-500.0,0.00023561,4]
[346004559,1734619856514,-613.45,0.00023561,4]
[346004560,1734619856526,-500.0,0.00023561,4]
[346004561,1734619856540,-583.42,0.00023561,4]
[346004562,1734619856551,-500.0,0.00023561,4]
[346004563,1734619856563,-1342.63,0.00023561,4]
[346004564,1734619856575,-925.35,0.00023561,4]
[346004565,1734619856586,-500.0,0.00023561,4]
[346004566,1734619856597,-552.75,0.00023561,4]
[346004567,1734619856610,-500.0,0.00023561,4]
[346004568,1734619856621,-592.13,0.00023561,4]
[346004569,1734619856633,-500.0,0.00023561,4]
[346004570,1734619856645,-500.0,0.00023561,4]
[346004571,1734619856656,-2339.55,0.00023561,4]
[346004572,1734619856668,-500.0,0.00023561,4]
[346004573,1734619856680,-500.0,0.00023561,4]
[346004574,1734619856691,-500.0,0.00023561,4]
[346004575,1734619856702,-1038.07,0.00023561,4]
[346004576,1734619856713,-1573.39,0.00023561,4]
[346004577,1734619856724,-500.0,0.00023561,4]
[346004578,1734619856735,-500.0,0.00023561,4]
[346004579,1734619856746,-500.0,0.00023561,4]
[346004580,1734619856758,-500.0,0.00023561,4]
[346004581,1734619856770,-965.55,0.00023561,4]
[346004582,1734619856784,-54.79191823,0.00023561,4]
[346004583,1734619856798,-1626.99808177,0.00023561,4]
[346004584,1734619856810,-500.0,0.00023561,4]
[346004585,1734619856822,-1067.32,0.00023561,4]
[346004586,1734619856834,-1437.18,0.00023561,4]
[346004587,1734619856846,-500.0,0.00023561,4]
[346004588,1734619856857,-2714.35,0.00023561,4]
[346004589,1734619856869,-500.0,0.00023561,4]
[346004590,1734619856880,-1379.44,0.00023561,4]
[346004591,1734619856897,-969.59071636,0.00023561,2]
[346004592,1734619856908,-500.0,0.00023561,4]
[346004593,1734619856919,-500.0,0.00023561,4]
[346004594,1734619856931,-500.0,0.00023561,4]
[346004595,1734619856941,-753.13,0.00023561,4]
[346004596,1734619856953,-500.0,0.00023561,4]
[346004597,1734619856965,-500.0,0.00023561,4]
[346004598,1734619856976,-598.07703763,0.00023561,4]
[346004599,1734619856987,-500.0,0.00023561,4]
[346004600,1734619856999,-1073.6,0.00023561,4]
[346004601,1734619857010,-1048.43182061,0.00023561,4]
[346004602,1734619857025,-45.73817939,0.00023561,4]
[346004603,1734619857041,-1087.63,0.00023561,4]
[346004604,1734619857053,-500.0,0.00023561,4]
[346004605,1734619857064,-1063.81152183,0.00023561,4]
[346004606,1734619857078,-392.74847817,0.00023561,4]
[346004607,1734619857089,-594.1,0.00023561,4]
[346004608,1734619857101,-500.0,0.00023561,4]
[346004609,1734619857113,-500.0,0.00023561,4]
[346004610,1734619857125,-500.0,0.00023561,4]
[346004611,1734619857136,-500.0,0.00023561,4]
[346004612,1734619857147,-500.0,0.00023561,4]
[346004613,1734619857158,-199.02459608,0.00023561,4]
[346004614,1734619857172,-382.08540392,0.00023561,4]
[346004615,1734619857184,-500.0,0.00023561,4]
[346004616,1734619857196,-500.0,0.00023561,4]
[346004617,1734619857207,-2776.06,0.00023561,4]
[346004618,1734619857219,-500.0,0.00023561,4]
[346004619,1734619857230,-545.99,0.00023561,4]
[346004620,1734619857241,-1708.04,0.00023561,4]
[346004621,1734619857254,-500.0,0.00023561,4]
[346004622,1734619857266,-500.0,0.00023561,4]
[346004623,1734619857277,-500.0,0.00023561,4]
[346004624,1734619857292,-1364.7,0.00023561,4]
[346004625,1734619857303,-500.0,0.00023561,4]
[346004626,1734619857313,-655.37,0.00023561,4]
[346004627,1734619857322,-500.0,0.00023561,4]
[346004628,1734619857332,-1161.39,0.00023561,4]
[346004629,1734619857342,-500.0,0.00023561,4]
[346004630,1734619857352,-516.6,0.00023561,4]
[346004631,1734619857361,-500.0,0.00023561,4]
[346004632,1734619857371,-274.62413037,0.00023561,4]
[346004633,1734619857381,-556.79,0.00023561,4]
[346004634,1734619857390,-500.0,0.00023561,4]
[346004635,1734619857400,-150.73032653,0.00023562,2]
[346004636,1734619857410,-162.55681607,0.00023589,2]
[346004637,1734619857420,-2110.0,0.00023609,2]
[346004638,1734619857429,-500.0,0.00023644,2]
[346004639,1734619857439,-150.0,0.00023677,4]
[346004640,1734619857452,-1980.07,0.00023689,7]
[346004641,1734619857462,-1980.07,0.00023689,7]
[346004642,1734619857472,-1980.07,0.00023689,7]
[346004643,1734619857483,-1980.07,0.00023689,7]
[346004644,1734619857495,-152.0,0.00023694,3]
[346004645,1734619857505,-150.73032653,0.00023699,2]
[346004646,1734619857514,-209.0,0.0002373,2]
[346004647,1734619857526,-23183.75767911,0.00023735,2]
[346004648,1734619857541,-8402.99742089,0.00023735,2]
[346004649,1734619857551,-14559.09296563,0.00023738,2]
[346004650,1734619857563,-5263.71593786,0.00023738,2]
[346004651,1734619857573,-287.7876762,0.0002377,2]
[346004652,1734619857582,-1700.0,0.000238,8]
[346004653,1734619857592,-150.0,0.00023814,2]
[346004654,1734619857602,-150.0,0.00023814,2]
[346004655,1734619857612,-150.0,0.00023817,2]
[346004656,1734619857621,-150.0,0.00023826,2]
[346004657,1734619857631,-341.58875667,0.00023829,5]
[346004658,1734619857640,-150.0,0.00023829,2]
[346004659,1734619857650,-341.58875667,0.00023829,5]
[346004660,1734619857661,-150.0,0.00023833,2]
[346004661,1734619857672,-500.0,0.00023835,4]
[346004662,1734619857681,-265.58045779,0.00023835,4]
[346004663,1734619857691,-500.0,0.00023835,4]
[346004664,1734619857700,-500.0,0.00023835,4]
[346004665,1734619857710,-500.0,0.00023835,4]
[346004666,1734619857720,-500.0,0.00023835,4]
[346004667,1734619857729,-500.0,0.00023835,4]
[346004668,1734619857738,-500.0,0.00023835,4]
[346004669,1734619857749,-500.0,0.00023835,4]
[346004670,1734619857758,-500.0,0.00023835,4]
[346004671,1734619857768,-500.0,0.00023835,4]
[346004672,1734619857778,-500.0,0.00023835,4]
[346004673,1734619857791,-393.5107377,0.00023835,4]